Cogmind - Beta 17.1 @@@ ROGUE MODE // 2026.09.09 @ 20:02:51 Player: hellbent Result: Destroyed by as-06952 with Assembled Maul Performance ------------- Evolutions (0) 0 Regions Visited (2) 400 Robots Destroyed (9) 45 Value Destroyed (129) 129 Prototype IDs (6) 120 Alien Tech Used (0) 0 Bonus (5000) 5000 TOTAL SCORE: 5694 Bonus ------- Prayed to X0-1V1 5000 Cogmind --------- Core Integrity 0/150 Matter 240/300 Energy 300/300 System Corruption 11% Temperature Cool (0) Movement Core (1450) Ox28 Location -10/Mines Parts ------- > --- POWER (1) -------- (None) > --- PROPULSION (2) --- (None) > --- UTILITY (2) ------ Huge Storage Unit > --- WEAPON (2) ------- Grenade Launcher Hammer > --- INVENTORY (25) --- Light Ion Engine Light Treads Light Treads Compact Wheel Heat Sink Medium Matter Pod (100) Medium Matter Pod (100) Weight Redist. System Light Armor Plating Light Assault Rifle Grenade Launcher Welding Torch Hammer Peak State ------------ > --- POWER ------------ Light Ion Engine > --- PROPULSION ------- Light Treads Light Treads > --- UTILITY ---------- Huge Storage Unit X0-1V1's Piety Tracker > --- WEAPON ----------- EM Pulse Gun Light Assault Rifle > --- INVENTORY -------- Light Ion Engine Light Treads Wheel Heat Sink Medium Matter Pod Medium Matter Pod Weight Redist. System Light Armor Plating EM Pulse Gun Grenade Launcher Grenade Launcher Welding Torch Hammer Hammer Hammer [Rating: 20] Favorites ----------- Power Ion Engine Engine Ion Engine Propulsion Wheel Treads Light Treads Wheel Wheel Utility Huge Storage Unit Device X0-1V1's Piety Tracker Storage Huge Storage Unit Hackware Hacking Suite Protection Light Armor Plating Weapon EM Pulse Gun Energy Gun EM Pulse Gun Ballistic Gun Light Assault Rifle Launcher Grenade Launcher Impact Weapon Hammer Build | -11 -10 -10 ------- Run | Yrd Mat Min Slots Evolved . | . . . Power . | . . . Propulsion . | . . . Utility . | . . . Weapon . | . . . Parts Attached 21 | 6 9 6 Power 2 | 1 1 . Engine 2 | 1 1 . Core . | . . . Reactor . | . . . Propulsion 5 | 2 1 2 Treads 2 | . 1 1 Leg . | . . . Wheel 3 | 2 . 1 Hover . | . . . Flight . | . . . Utility 6 | 1 4 1 Device 1 | . . 1 Storage 3 | 1 2 . Processor . | . . . Hackware 1 | . 1 . Protection 1 | . 1 . Artifact . | . . . Weapon 8 | 2 3 3 Energy Gun 2 | 2 . . Energy Cannon . | . . . Ballistic Gun 1 | . . 1 Ballistic Cannon . | . . . Launcher 2 | . 1 1 Special Weapon . | . . . Impact Weapon 3 | . 2 1 Slashing Weapon . | . . . Piercing Weapon . | . . . Special Melee Weapon . | . . . Unidentified Prototypes 1 | . . 1 Parts Lost 11 | . 3 8 Power 2 | . 1 1 Propulsion 4 | . 1 3 Utility 3 | . 1 2 Weapon 2 | . . 2 Highest Loss Streak 7 | . 3 7 To Critical Strikes . | . . . Average Backups 12 | 2 12 15 Power 1 | . 1 1 Propulsion 2 | 1 2 2 Utility 3 | . 3 5 Weapon 4 | . 4 5 Tool/Special . | . . . Unused Backups 10 | . 1 9 Power 1 | . . 1 Propulsion 2 | . . 2 Utility 6 | . 1 5 Weapon . | . . . Tool/Special 1 | . . 1 Average Slot Usage (%) 96 | . 97 90 Engine 13 | . 13 12 Treads 6 | . 5 18 Wheel 20 | . 22 9 Device 1 | . . 9 Storage 14 | . 14 14 Hackware 5 | . 6 . Protection 4 | . 5 1 Energy Gun 25 | . 26 17 Impact Weapon 1 | . 1 2 Peak Build Rating 20 | 6 11 20 Average Rating 9 | 4 8 15 On Entrance 4 | . 6 8 Avg Prop Armor Cover (%) 9 | . 9 11 Naked Turns . | . . . Heaviest Build 90 | 14 90 88 Greatest Support 40 | 26 26 40 Greatest Overweight (x) 8 | . 8 8 Average Overweight (x) 3 | . 3 7 Largest Inventory Capacity 25 | 8 25 25 Average Capacity 21 | 6 22 25 Most Carried 19 | 4 19 17 Average Carried 12 | 2 12 15 Final Capacity 25 | 8 25 25 Final Carried 15 | 4 15 13 Class Distribution -------------------- 100% | Mutant Dominant Class ---------------- Mutant | -10/Materials Mutant | -10/Mines Resources | -11 -10 -10 ----------- Run | Yrd Mat Min Matter Collected 694 | 244 382 68 Remotely . | . . . Salvage Created 303 | . 152 151 Parts 21 | . 16 5 Haulers Intercepted 2 | . 2 . Recyclers Shooed . | . . . Parts Field Recycled . | . . . Retrieved Matter . | . . . Parts Self-Destructed . | . . . Prevented . | . . . Parts Restored . | . . . Kills | -11 -10 -10 ------- Run | Yrd Mat Min Combat Hostiles Destroyed 6 | . 3 3 Guns 1 | . . 1 AOE 5 | . 3 2 Classes Destroyed 7 | . 4 3 Hauler 2 | . 2 . Recycler 1 | . . 1 Operator 1 | . 1 . Watcher 1 | . 1 . Swarmer 3 | . 3 . Grunt 1 | . . 1 Assembled 2 | . . 2 Best Kill Streak 3 | . 3 2 Combat Bots Only 3 | . 3 2 Max Kills in Single Turn 2 | . 2 1 Gunslinging . | . . . Exploded 2 | . 2 1 Melee . | . . . Uniques/NPCs Destroyed . | . . . Combat | -11 -10 -10 -------- Run | Yrd Mat Min Hostile Shots Fired 35 | . 9 26 Missed 3 | . 1 2 Hits 32 | . 8 24 Melee 1 | . . 1 Projectile 31 | . 8 23 AOE 10 | . . 10 Critical Strikes 1 | . . 1 Damage Taken 1045 | . 381 664 Core 266 | . 130 136 Absorbed by Shields . | . . . Core Remaining (%) 100 | 100 . . Volleys Fired 23 | . 9 14 Largest 2 | . 2 2 Hottest 80 | . 80 80 Shots Fired 40 | . 16 24 Gun 34 | . 14 20 Cannon . | . . . Launcher 6 | . 2 4 Special . | . . . Kinetic 8 | . . 8 Thermal . | . . . Explosive 6 | . 2 4 Electromagnetic 26 | . 14 12 Robot Hit Streak 4 | . 4 3 Robot Miss Streak 2 | . 2 2 Penetration Max . | . . . Secondary Targets . | . . . Shots Hit Robots 20 | . 6 14 Core Hits 27 | . 10 17 Critical Kills . | . . . Critical Parts Destroyed 2 | . . 2 Critical Strikes 3 | . . 3 Destroy 1 | . . 1 Corrupt 1 | . . 1 Smash 1 | . . 1 Melee Attacks 14 | . 11 3 Impact 14 | . 11 3 Slashing . | . . . Piercing . | . . . Sneak Attacks . | . . . Combat Hostiles . | . . . Follow-up Attacks . | . . . Damage Inflicted 591 | . 245 346 Guns 225 | . 92 133 Cannons . | . . . Explosions 340 | . 153 187 Melee 26 | . . 26 Ramming . | . . . Kinetic 36 | . . 36 Thermal . | . . . Explosive 340 | . 153 187 Electromagnetic 189 | . 92 97 Impact 26 | . . 26 Slashing . | . . . Piercing . | . . . Highest Corruption 11 | . 11 11 Average Corruption 11 | . 11 11 Corruption Purged . | . . . Corruption Blocked . | . . . Effects 19 | . 16 3 Message Errors 4 | . 4 . Matter Fused 3 | . 2 1 Heat Flow Errors 1 | . 1 . Energy Discharges 7 | . 6 1 Parts Rejected 1 | . . 1 Data Loss (minor) 3 | . 3 . Overload Shots . | . . . Overflow Damage 26 | . . 26 Projectiles . | . . . Explosions . | . . . Melee 26 | . . 26 Knockbacks . | . . . Impact . | . . . Kinetic . | . . . Secondary . | . . . Self-Inflicted Damage . | . . . Shots . | . . . Rammed . | . . . Targets Rammed . | . . . Kicked . | . . . Crushed . | . . . Highest Temperature 133 | . 92 133 Average Temperature 45 | . 22 64 Received Heat Transfer 111 | . . 111 Siege Activations . | . . . Martial Activations . | . . . Shielding Activations . | . . . Robots Disrupted . | . . . Combat Hostiles . | . . . Robots Corrupted . | . . . Combat Hostiles . | . . . Parts Fried 1 | . . 1 Impact Corruptions 1 | . . 1 Robots Melted . | . . . Combat Hostiles . | . . . Parts Melted . | . . . Heat Transferred . | . . . Parts Sabotaged . | . . . Parts Stolen . | . . . Parts Stripped . | . . . Power Chain Reactions . | . . . Alert | -11 -10 -10 ------- Run | Yrd Mat Min Maximum Alert Level . | . . . Low Security (%) 100 | 100 100 100 Level 1 . | . . . Level 2 . | . . . Level 3 . | . . . Level 4 . | . . . Level 5 . | . . . High Security . | . . . Max Security . | . . . Peak Influence 86 | . 86 39 Initial . | . . . Average 10 | . 10 13 Influence Increases 226 | . 137 89 Destroy 0b10 Robot/C 80 | . 60 20 Destroy 0b10 Robot/NC 25 | . 20 5 Destroy Leader 26 | . 16 10 Successful Hack 17 | . 17 . Disable Machine 15 | . . 15 Destroy Structure 48 | . 24 24 Lose Combat Pursuer 15 | . . 15 Influence Decreases 187 | . 136 51 Entered New Map 1 | . . 1 Time Decay 176 | . 126 50 Lost Part 10 | . 10 . Squads Dispatched . | . . . Investigation . | . . . Extermination . | . . . Reinforcement . | . . . Assault . | . . . Garrison . | . . . Intercept . | . . . Searches Triggered . | . . . Construction Impeded . | . . . Haulers Reinforced . | . . . Active Scanning Responses . | . . . Cargo Convoy Interrupts . | . . . Stealth | -11 -10 -10 --------- Run | Yrd Mat Min Distress Signals 1 | . 1 . Communications Jammed . | . . . Distress Signals . | . . . Times Spotted 20 | . 8 12 Peak Tracking Total 7 | . 3 7 Tactical Retreats 1 | . . 1 Traps | -11 -10 -10 ------- Run | Yrd Mat Min Traps Triggered . | . . . Indirectly . | . . . Trap Hack Attempts . | . . . Triggered . | . . . Disarmed . | . . . Reprogrammed . | . . . Reused . | . . . Traps Extracted . | . . . Installed . | . . . Triggered . | . . . Machines | -11 -10 -10 ---------- Run | Yrd Mat Min Machines Disabled 1 | . . 1 Max in Single Turn 1 | . . 1 Machines Repaired . | . . . Machines Dismantled . | . . . Machines Sabotaged . | . . . Overloaded Fab Kills . | . . . Hacking | -11 -10 -10 --------- Run | Yrd Mat Min Machines Accessed 4 | . 4 . Terminals 4 | . 4 . Fabricators . | . . . Repair Stations . | . . . Recycling Units . | . . . Scanalyzers . | . . . Garrison Access . | . . . Total Hacks 13 | . 13 . Successful 7 | . 7 . Failed 6 | . 6 . Catastrophic . | . . . Database Lockouts . | . . . Manual 10 | . 10 . Terminals 13 | . 13 . Fabricators . | . . . Repair Stations . | . . . Recycling Units . | . . . Scanalyzers . | . . . Garrison Access . | . . . Terminal Hacks 5 | . 5 . Robot Analysis 1 | . 1 . Prototype ID Bank 3 | . 3 . Hauler Manifests 1 | . 1 . Fabricator Hacks . | . . . Repair Station Hacks . | . . . Recycling Unit Hacks . | . . . Scanalyzer . | . . . Garrison Access Hacks . | . . . Unauthorized Hacks 2 | . 2 . Terminals 2 | . 2 . Botnet 2 | . 2 . Fabricators . | . . . Repair Stations . | . . . Recycling Units . | . . . Scanalyzers . | . . . Garrison Access . | . . . Data Cores Recovered 1 | . 1 . Used . | . . . Hacking Detections 4 | . 4 . Full Trace Events . | . . . Feedback Events . | . . . Feedback Blocked . | . . . Robot Schematics Acquired . | . . . Robots Built . | . . . Authchips . | . . . Time . | . . . Total Robot Build Rating . | . . . Part Schematics Acquired . | . . . Parts Built . | . . . Authchips . | . . . Time . | . . . Total Part Build Rating . | . . . Part Studies Acquired . | . . . Parts Repaired . | . . . Time . | . . . Parts Recycled . | . . . Recycled Matter . | . . . Retrieved Matter . | . . . Retrieved Components . | . . . Parts Scanalyzed . | . . . Part Schematics Acquired . | . . . Parts Damaged . | . . . Bothacking | -11 -10 -10 ------------ Run | Yrd Mat Min Used RIF Installer . | . . . Robots Hacked . | . . . Non-combat . | . . . Combat . | . . . Robot Hacks Applied . | . . . Relay Couplers Released . | . . . Fabnet Peak Effective % . | . . . Robots Rewired . | . . . Allies Hacked . | . . . Hacks Repelled . | . . . Allies | -11 -10 -10 -------- Run | Yrd Mat Min Total Allies . | . . . Largest Group . | . . . Highest-Rated Group . | . . . Highest-Rated Ally . | . . . Total Orders . | . . . Ally Attacks . | . . . Total Damage . | . . . Kills . | . . . Allies Corrupted . | . . . Allies Melted . | . . . X0-1V1 Amusement Gains 104 | . 10 94 Average Entertainment 12 | . 9 13 Good Acts 2 | . . 2 Intel | -11 -10 -10 ------- Run | Yrd Mat Min Active Infowar (turns) . | . . . Robot Analysis Total 1 | . 1 . Derelict Logs Recovered . | . . . Drone Launches . | . . . Drone Recoveries . | . . . Exploration | -11 -10 -10 ------------- Run | Yrd Mat Min Turns Passed 1096 | 51 913 132 Spaces Moved 652 | 42 579 31 Core 2 | 2 . . Treads 4 | . . 4 Legs . | . . . Wheels 646 | 40 579 27 Hover . | . . . Flight . | . . . Fastest Speed 50 | 50 90 175 Average Speed 141 | 90 141 214 Slowest Speed 320 | 100 200 320 Overloaded Moves . | . . . Propulsion Burnouts . | . . . Robots Hopped . | . . . Potential Cave-ins . | . . . Cave-ins Triggered 1 | . 1 . Exploration Rate (%) 30 | 4 80 8 Regions Visited 2 Branch Regions 1 Pre-discovered Areas . | . . . Known Exits Taken . | . . . Unknown Exits Taken 2 | 1 1 . Scrap Searched . | . . . Spaces Dug 8 | . 8 . Terrain Destroyed 55 | . 23 32 Melee 8 | . 8 . Projectile . | . . . AOE 47 | . 15 32 Terrain Rammed . | . . . Walls Destroyed . | . . . Machines Disabled . | . . . Actions | -11 -10 -10 --------- Run | Yrd Mat Min Total 754 | 51 636 67 Wait 17 | . 9 8 Move 650 | 41 578 31 Hop . | . . . Pick Up 21 | 4 15 2 Fast Attach 9 | 6 2 1 Attach 7 | . 3 4 Detach . | . . . Swap 10 | . 6 4 Drop 3 | . 3 . Fire 23 | . 9 14 Melee 14 | . 11 3 Ram . | . . . Kick . | . . . Crush . | . . . Escape Stasis . | . . . Rewire . | . . . Trap . | . . . Miscellaneous . | . . . Route ------- -11/Scrapyard -10/Materials (discovered 3 exits: [*Mat] / [*Min] / [*Sub]) -10/Mines History --------- Turn | Location | Event 7 | -11/Scrapyard | Discovered new exit (range 13) 52 | -11/Scrapyard | Entered Materials 53 | -10/Materials | Met a group of wandering Federalists 270 | -10/Materials | Discovered new exit (range 8) 315 | -10/Materials | Build established: Mutant 505 | -10/Materials | Discovered new exit (range 10) 549 | -10/Materials | Discovered new exit (range 6) 617 | -10/Materials | Crushed by falling debris 617 | -10/Materials | Core integrity fell below 50% 617 | -10/Materials | System corruption reached 10% 648 | -10/Materials | Lost 3 parts (1p1n1u) 901 | -10/Materials | Prayed at D.C.S.S. Altar Unit 965 | -10/Materials | Entered Mines 1023 | -10/Mines | Energy capacity permanently improved by X0-1V1 (+200; -100 max core) 1063 | -10/Mines | Assembled infested the area 1091 | -10/Mines | Core integrity fell below 20% 1097 | -10/Mines | Destroyed by as-06952 with Assembled Maul Last Messages --------------- 01083_ Lgt. Treads destroyed. 01084_ D-53 Grenadier suffers critical hit (Smash). 01084_ Destroyed Cmb. Airjet. 01084_ D-53 Grenadier system corrupted by crushing effect. 01084_ K-01 Serf collects debris. 01085_ The unstable cave ceiling collapses. 01090_ Com. Wheel destroyed. 01090_ X0-1V1's Piety Tracker destroyed. 01090_ X0-1V1 is mildly amused. 01091_ The unstable cave ceiling collapses. 01091_ X0-1V1 is amused. 01092_ The unstable cave ceiling collapses. 01092_ Terminal disabled. 01094_ The unstable cave ceiling collapses. 01094_ D-53 Grenadier destroyed. 01095_ The unstable cave ceiling collapses. 01096_ as-50582 destroyed. 01097_ X0-1V1 laughs nastily! Map ----- +----------------------------------------------------+ | ??????????????????????????????????????????????? | | ??????????????????????????????????????????????? | | ??????????????????????????????????????????????? | | ??????????????????????????????????????????????? | | ??????????????????????????????????????????????? | | ??????????????????????????????????????????????? | | ??????????????????????????????????????????????? | | ??????????????????????????????????????????????? | | ??????????????????????????????????????????????? | | ??????????????????????????????????????????????? | | ??????????????????????????????????????????????? | | ?????????????????????????##???????????????????? | | ???????????????????????? ???????????????????? | | ???????????????????????? #???????????????????? | | ???????????????????????? #???????????????????? | | ???????????????????????? #???##??????????????? | | ???????????????????##### #?? #??????????????? | | ???????????????????# ## #??????????????? | | ??????????????????? #??????????????? | | ?????????????????### ####???????????? | | ?????????????????? k a % a a????????????? | | ??????????????????# a#?????????????? | | ?????????????????## # ???????????????? | | ?????????????????# a# #?????????????????? | | ?????????????????# a # #?????????????????? | | ?????????????????# # @ #??????????????????? | | ?????????????????# #??????????????????? | | ?????????????????# #??????????????????? | | ???????#####?????# # #??????????????????? | | ??????## ##???### # ##??????????????????? | | ???#### % ###?# ###???????????????????? | | ???# !### #######?????????????????????? | | ??# ! %= #???????????????????????????? | | ??# #####???????????????????????????? | | ??## #########???????????????????????????????? | | ???###????????????????????????????????????????? | | ??????????????????????????????????????????????? | | | | | | | | | | | | | | | | | | | | | | | | | | | +----------------------------------------------------+ Best States ------------- Heat Dissipation 25 Energy Generation 10 Energy Capacity 325 Matter Stores 300 Matter Capacity 300 Sight Range 16 Terrain Scan Density 10 Armor Coverage 150 Evasion (%) 42 Recoil Reduction 2 Offensive Hacking 10 Item Schematics ----------------- None Robot Schematics ------------------ None Fabricated ------------ Nothing Repaired ---------- Nothing Studied --------- None Alien Tech Used ----------------- None Achievements -------------- None Challenges ------------ None Game ------ Seed BeamSuperdenseObfuscator Manual? 0 Play Time 00:11:38 Cumulative 76.9 hours Start 2026.09.09 @ 19:53:03 End 2026.09.09 @ 20:02:51 Sessions 1 Manual Loads 0 Difficulty Rogue Special Mode None Game No. 88 Rogue 88 Adventurer 0 Explorer 0 Win Type - Total 2 Types 2/0/0/0/0/0/0/0/0/0 Lore% 28 Gallery% 40 Achievement% 31 Wizard Run 0 Options --------- Layout 1 ASCII 0 Keyboard 0 Movement Mouse Keybinds 0 Fullscreen 1 Font 24/Smallcaps Map View 25x17 Zoom Use 53% Tactical HUD 1 Map Filters NONE Filters NONE Steam 1 RUN: b80c4a7f-f836-4e72-8bbf-00b058c0d478